[Event "110th Anniversary WIM 2020"]
[Site "Hilleroed"]
[Date "2020.02.09"]
[Round "2.5"]
[White "Guindy, Esmat Susanne"]
[Black "Berke, Ana"]
[Result "1-0"]
[ECO "A37"]
[WhiteElo "2143"]
[BlackElo "2152"]
[Annotator "ChessBase"]
[PlyCount "149"]
[EventDate "2020.02.08"]
[EventType "tourn"]
[EventCountry "DEN"]
[SourceTitle "playchess.com"]
[Source "ChessBase"]
[SourceQuality "1"]
[TimeControl "40/5400+30:1800+30"]

1. c4 {[%emt 0:00:00]} c5 {[%emt 0:00:00]} 2. Nc3 {[%emt 0:00:01]} Nc6 {[%emt 0:00:00]} 3. g3 {[%emt 0:00:27]} e5 {[%emt 0:00:00]} 4. Bg2 {[%emt 0:00:39]} d6 {[%emt 0:00:25]} 5. d3 {[%emt 0:11:02]} g6 {[%emt 0:02:01]} 6. Nf3 {[%emt 0:03:34]} Bg7 {[%emt 0:01:10]} 7. O-O {[%emt 0:00:09]} Nge7 {[%emt 0:00:26]} 8. Bd2 {[%emt 0:06:22]} O-O {[%emt 0:01:34]} 9. Qc1 {[%emt 0:05:38]} Rb8 {[%emt 0:07:43]} 10. Rb1 {[%emt 0:01:08]} a5 {[%emt 0:01:37]} 11. a3 {[%emt 0:04:05]} b6 {[%emt 0:06:22]} 12. Re1 {[%emt 0:07:45]} f6 {[%emt 0:07:09]} 13. Na2 {[%emt 0:16:56]} d5 {[%emt 0:09:41]} 14. cxd5 {[%emt 0:02:07]} Nxd5 {[%emt 0:00:48]} 15. b4 {[%emt 0:04:35]} axb4 {[%emt 0:10:04]} 16. axb4 {[%emt 0:00:13]} Ncxb4 {[%emt 0:02:38]} 17. Nxb4 {[%emt 0:00:17]} Nxb4 {[%emt 0:01:52]} 18. Bxb4 {[%emt 0:00:17]} cxb4 {[%emt 0:00:08]} 19. Qc4+ {[%emt 0:04:19]} Kh8 {[%emt 0:01:50]} 20. Rec1 {[%emt 0:01:06]} f5 {[%emt 0:08:28]} 21. h4 {[%emt 0:01:24]} Qf6 {[%emt 0:03:06]} 22. Qxb4 {[%emt 0:02:18]} e4 {[%emt 0:05:03]} 23. Nd2 {[%emt 0:04:26]} exd3 {[%emt 0:06:28]} 24. exd3 {[%emt 0:01:11]} Qd4 {[%emt 0:03:47]} 25. Qxd4 {[%emt 0:02:18]} Bxd4 {[%emt 0:00:04]} 26. Rc4 {[%emt 0:00:09]} Rd8 {[%emt 0:01:28]} 27. Nf3 {[%emt 0:01:13]} Bg7 {[%emt 0:01:23]} 28. d4 {[%emt 0:01:06]} Be6 {[%emt 0:05:43]} 29. Rcb4 {[%emt 0:00:52]} Rd6 {[%emt 0:00:40]} 30. Ne5 {[%emt 0:02:46]} Bg8 {[%emt 0:07:06]} 31. Nc6 {[%emt 0:01:07]} Rf8 {[%emt 0:00:56]} 32. Rxb6 {[%emt 0:03:37]} f4 {[%emt 0:00:56]} 33. Rb8 {[%emt 0:02:12]} fxg3 {[%emt 0:02:37]} 34. Rxf8 {[%emt 0:00:45]} Bxf8 {[%emt 0:00:22]} 35. fxg3 {[%emt 0:01:12]} Bd5 {[%emt 0:01:04]} 36. Rb8 {[%emt 0:02:10]} Kg7 {[%emt 0:01:13]} 37. Bxd5 {[%emt 0:02:39]} Rxd5 {[%emt 0:00:11]} 38. Rd8 {[%emt 0:01:02]} Rb5 {[%emt 0:00:50]} 39. Kg2 {[%emt 0:01:25]} Rb3 {[%emt 0:00:48]} 40. Ne5 {[%emt 0:01:29]} Ba3 {[%emt 0:01:35]} 41. Rd7+ {[%emt 0:31:08]} Kg8 {[%emt 0:08:04]} 42. Ng4 {[%emt 0:00:00]} Rb2+ {[%emt 0:07:42]} 43. Kh3 {[%emt 0:00:00]} h5 {[%emt 0:00:23]} 44. Ne5 {[%emt 0:00:00]} Rb6 {[%emt 0:00:20]} 45. d5 {[%emt 0:00:00]} Bc5 {[%emt 0:02:33]} 46. Rc7 {[%emt 0:00:00]} Bd6 {[%emt 0:02:09]} 47. Rc8+ {[%emt 0:00:00]} Kg7 {[%emt 0:00:44]} 48. Nc4 {[%emt 0:00:00]} Ra6 {[%emt 0:00:27]} 49. Kg2 {[%emt 0:00:00]} Bb4 {[%emt 0:02:47]} 50. Kf3 {[%emt 0:00:00]} Ra1 {[%emt 0:00:18]} 51. Rb8 {[%emt 0:00:00]} Bc5 {[%emt 0:01:06]} 52. Rb5 {[%emt 0:00:00]} Bf8 {[%emt 0:00:25]} 53. Rb7+ {[%emt 0:00:00]} Kf6 {[%emt 0:04:44]} 54. Rb6+ {[%emt 0:00:00]} Kg7 {[%emt 0:02:42]} 55. Ne5 {[%emt 0:00:00]} Rf1+ {[%emt 0:01:37]} 56. Kg2 {[%emt 0:00:00]} Rd1 {[%emt 0:00:25]} 57. Rxg6+ {[%emt 0:00:00]} Kh7 {[%emt 0:00:23]} 58. Rg5 {[%emt 0:00:00]} Rxd5 {[%emt 0:00:31]} 59. Rxh5+ {[%emt 0:00:00]} Kg7 {[%emt 0:00:33]} 60. Rg5+ {[%emt 0:00:11]} Kh7 {[%emt 0:00:11]} 61. Nf3 {[%emt 0:00:49]} Rd3 {[%emt 0:00:27]} 62. Rf5 {[%emt 0:00:48]} Bd6 {[%emt 0:00:15]} 63. g4 {[%emt 0:00:43]} Kg6 {[%emt 0:00:50]} 64. h5+ {[%emt 0:01:05]} Kh6 {[%emt 0:01:29]} 65. Rf6+ {[%emt 0:00:27]} Kg7 {[%emt 0:00:05]} 66. g5 {[%emt 0:01:39]} Rd5 {[%emt 0:00:16]} 67. Rg6+ {[%emt 0:01:08]} Kh7 {[%emt 0:00:09]} 68. Kh3 {[%emt 0:00:38]} Bc7 {[%emt 0:01:19]} 69. Kg4 {[%emt 0:01:46]} Rc5 {[%emt 0:00:16]} 70. Rf6 {[%emt 0:00:49]} Kg7 {[%emt 0:00:45]} 71. h6+ {[%emt 0:00:23]} Kg8 {[%emt 0:01:12]} 72. g6 {[%emt 0:01:35]} Rc4+ {[%emt 0:00:41]} 73. Kh5 {[%emt 0:01:01]} Rc5+ {[%emt 0:00:51]} 74. Ng5 {[%emt 0:00:27]} Be5 {[%emt 0:00:30]} 75. h7+ {[%emt 0:06:52] Rc4} 1-0

[Event "110th Anniversary WIM 2020"]
[Site "Hilleroed"]
[Date "2020.02.09"]
[Round "3.4"]
[White "Nilssen, Ellen Fredericia"]
[Black "Baliuniene, Margarita"]
[Result "1/2-1/2"]
[ECO "D36"]
[WhiteElo "2065"]
[BlackElo "1982"]
[Annotator "NA RC"]
[PlyCount "106"]
[EventDate "2020.02.08"]
[EventType "tourn"]
[EventCountry "DEN"]
[SourceTitle "playchess.com"]
[Source "ChessBase"]
[SourceQuality "1"]
[TimeControl "40/5400+30:1800+30"]

{[%evp 10,101,6,15,2,32767,26,17,32767,32767,32767,32767,32767,29,32767,21,23,18,32767,8,18,-29,-35,-31,-35,32767,32767,32767,32767,32767,95,97,90,87,88,12,25,12,66,28,54,48,32767,0,0,0,47,60,68,61,69,65,41,38,58,0,0,0,0,0,0,0,10,32767,32767,32767,32767,-54,32767,32767,-10,-40,32767,32767,32767,32767,32767,-35,-35,32767,-36,-31,-23,32767,-85,-51,32767,32767,32767,32767,32767,32767,32767,-27]} 1. d4 {[%emt 0:00:00]} d5 {[%emt 0:00:00]} 2. Nf3 {[%emt 0:00:00]} Nf6 {[%emt 0:00:00]} 3. c4 {[%emt 0:00:00]} e6 {[%emt 0:00:00]} 4. Nc3 {[%emt 0:00:00]} Be7 {[%emt 0:00:23]} 5. cxd5 {[%emt 0:00:00]} exd5 {[%emt 0:00:10]} 6. Bg5 {[%emt 0:00:03]} c6 {[%emt 0:00:25]} 7. Qc2 {[%emt 0:00:35]} Nbd7 {[%emt 0:01:48]} 8. e3 {[%emt 0:00:08]} Nf8 {[%emt 0:00:25]} 9. Bd3 {[%emt 0:00:23]} Ne6 {[%emt 0:01:34]} 10. Bh4 {[%emt 0:11:27]} g6 {[%emt 0:01:13]} 11. O-O {[%emt 0:07:49]} O-O {[%emt 0:00:18]} 12. Rab1 {[%emt 0:04:42]} Ng7 {[%emt 0:03:42]} 13. b4 {[%emt 0:03:23]} a6 {[%emt 0:00:41] D36: Queen's Gambit Declined: Exchange Variation: Main line (5 Bg5 c6 6 Qc2).} 14. Na4 {[%emt 0:09:40]} Nf5 {[%emt 0:04:02] [#]} 15. Bg3 $146 {[%emt 0:02:27]} ({Predecessor:} 15. Bg5 $142 Nd6 16. Nc5 Nfe4 17. Bf4 Re8 18. a4 Bf8 19. Rfc1 f6 20. b5 axb5 21. axb5 Nxc5 22. dxc5 Nxb5 23. Bxb5 cxb5 24. Rxb5 {½-½ (38) Socko,M (2441)-Leniart,A (2482) Bialystok 2016}) 15... Nxg3 {[%emt 0:01:20]} 16. hxg3 {[%emt 0:00:18]} Bd6 {[%emt 0:03:36]} 17. Nd2 {[%emt 0:04:33]} Qe7 {[%emt 0:02:42]} 18. Nc5 {[%emt 0:09:03]} Re8 {[%emt 0:01:39]} 19. Rfe1 {[%emt 0:02:39]} Ne4 {[%emt 0:14:20]} (19... Qd8 $11 {keeps the balance.}) 20. Ndxe4 {[%emt 0:14:06]} ({But not} 20. Bxe4 $6 dxe4 21. Qb3 (21. Ncxe4 Bf5 $17) 21... Be6 $11) 20... dxe4 {[%emt 0:00:07]} 21. Nxe4 {[%emt 0:00:53]} Bxb4 {[%emt 0:01:06]} 22. Nf6+ {[%emt 0:00:27]} (22. Rxb4 $16 Qxb4 23. Nf6+ {[%mdl 64] Double Attack} Kh8 24. Rb1) 22... Qxf6 {[%emt 0:02:25]} 23. Rxb4 {[%emt 0:00:06]} Qd6 {[%emt 0:01:13]} 24. Reb1 {[%emt 0:02:30]} Re7 {[%emt 0:02:37]} 25. Rb6 {[%emt 0:00:31]} Ra7 {[%emt 0:06:31]} 26. Bc4 {[%emt 0:07:00]} (26. a4 $14) 26... Bf5 {[%emt 0:00:46]} 27. Bd3 {[%emt 0:00:05]} Bxd3 {[%emt 0:00:46]} 28. Qxd3 {[%emt 0:00:02]} Qd5 {[%emt 0:01:39]} 29. Qa3 {[%emt 0:04:49]} Rc7 {[%emt 0:01:43]} 30. Rc1 {[%emt 0:00:22]} Ra8 {[%emt 0:01:20]} 31. Qb2 {[%emt 0:00:24]} Qd7 {[%emt 0:01:49]} 32. d5 {[%emt 0:03:57]} Rac8 {[%emt 0:08:52]} 33. d6 {[%emt 0:01:27]} Qxd6 {[%emt 0:00:07]} 34. Rxb7 {[%emt 0:00:04]} c5 {[%emt 0:01:17]} 35. Rxc7 {[%emt 0:03:08]} Qxc7 {[%emt 0:00:42]} 36. Qc3 {[%emt 0:07:22]} Qb6 {[%emt 0:04:40]} 37. a4 {[%emt 0:00:08]} c4 {[%emt 0:04:12]} 38. Rc2 {[%emt 0:01:47]} Qb1+ {[%emt 0:04:34]} 39. Rc1 {[%emt 0:00:01]} Qa2 {[%emt 0:05:07]} 40. Qa5 {[%emt 0:02:27]} Qb2 {[%emt 0:01:50]} 41. Rc3 {[%emt 0:01:40]} Qb1+ {[%emt 0:00:39]} 42. Kh2 {[%emt 0:00:03]} Qb7 {[%emt 0:01:05]} 43. Kg1 {[%emt 0:02:54]} Qc6 {[%emt 0:03:09]} 44. Qb4 {[%emt 0:04:23]} Qd5 {[%emt 0:01:16]} 45. Qb1 {[%emt 0:06:12]} Qd2 {[%emt 0:08:46]} 46. Qb4 {[%emt 0:03:45]} Qd1+ {[%emt 0:00:27]} 47. Kh2 $15 {[%emt 0:00:03]} Qd5 {[%emt 0:00:05]} 48. Qb1 {[%emt 0:01:51]} a5 {[%emt 0:00:13]} 49. Qc2 {[%emt 0:00:52]} Rc5 {[%emt 0:01:12]} 50. Kg1 {[%emt 0:00:25]} Kg7 {[%emt 0:08:56]} 51. Kh2 {[%emt 0:00:16]} g5 {[%emt 0:07:29]} 52. g4 {[%emt 0:02:06]} Rc6 {[%emt 0:01:08]} 53. Kg1 {[%emt 0:01:16]} Rc5 {[%emt 0:03:32]} 1/2-1/2

[Event "110th Anniversary WIM 2020"]
[Site "Hilleroed"]
[Date "2020.02.09"]
[Round "3.5"]
[White "Berke, Ana"]
[Black "Kejzar, Petra"]
[Result "1/2-1/2"]
[ECO "D55"]
[WhiteElo "2152"]
[BlackElo "2072"]
[Annotator "ChessBase"]
[PlyCount "61"]
[EventDate "2020.02.08"]
[EventType "tourn"]
[EventCountry "DEN"]
[SourceTitle "playchess.com"]
[Source "ChessBase"]
[SourceQuality "1"]
[TimeControl "40/5400+30:1800+30"]

1. d4 {[%emt 0:00:00]} d5 {[%emt 0:00:00]} 2. c4 {[%emt 0:00:00]} c6 {[%emt 0:00:00]} 3. Nc3 {[%emt 0:00:00]} Nf6 {[%emt 0:00:00]} 4. Bg5 {[%emt 0:00:00]} e6 {[%emt 0:00:16]} 5. e3 {[%emt 0:00:00]} Be7 {[%emt 0:00:08]} 6. Nf3 {[%emt 0:00:00]} O-O {[%emt 0:00:27]} 7. cxd5 {[%emt 0:00:00]} cxd5 {[%emt 0:00:06]} 8. Be2 {[%emt 0:00:00]} Nc6 {[%emt 0:00:06]} 9. O-O {[%emt 0:00:00]} Ne4 {[%emt 0:00:12]} 10. Bxe7 {[%emt 0:00:01]} Qxe7 {[%emt 0:00:08]} 11. Rc1 {[%emt 0:00:01]} Nxc3 {[%emt 0:00:22]} 12. Rxc3 {[%emt 0:00:04]} Bd7 {[%emt 0:00:06]} 13. a3 {[%emt 0:00:06]} Rfc8 {[%emt 0:00:05]} 14. Qd2 {[%emt 0:00:02]} a6 {[%emt 0:01:13]} 15. Rfc1 {[%emt 0:00:24]} Qd8 {[%emt 0:00:35]} 16. b4 {[%emt 0:00:37]} Na7 {[%emt 0:00:12]} 17. Rxc8 {[%emt 0:00:43]} Rxc8 {[%emt 0:00:08]} 18. Rxc8 {[%emt 0:00:12]} Qxc8 {[%emt 0:00:04]} 19. Bd3 {[%emt 0:00:42]} Bb5 {[%emt 0:00:11]} 20. Bxb5 {[%emt 0:00:08]} Nxb5 {[%emt 0:00:07]} 21. Qb2 {[%emt 0:00:06]} h6 {[%emt 0:00:52]} 22. h3 {[%emt 0:00:59]} Qc3 {[%emt 0:00:30]} 23. Qxc3 {[%emt 0:00:04]} Nxc3 {[%emt 0:00:04]} 24. Ne5 {[%emt 0:00:16]} Nb5 {[%emt 0:00:40]} 25. a4 {[%emt 0:00:10]} Nc3 {[%emt 0:00:26]} 26. a5 {[%emt 0:00:05]} Na2 {[%emt 0:00:07]} 27. Nd3 {[%emt 0:00:09]} Kf8 {[%emt 0:00:53]} 28. Kf1 {[%emt 0:00:25]} Nc3 {[%emt 0:00:30]} 29. Ne5 {[%emt 0:00:37]} Na2 {[%emt 0:00:17]} 30. Nd3 {[%emt 0:00:06]} Nc3 {[%emt 0:00:04]} 31. Ne5 {[%emt 0:00:06]} 1/2-1/2

[Event "110th Anniversary WIM 2020"]
[Site "Hilleroed"]
[Date "2020.02.10"]
[Round "4.3"]
[White "Kakulidis, Ellen"]
[Black "Nilssen, Ellen Fredericia"]
[Result "1/2-1/2"]
[ECO "A48"]
[WhiteElo "2052"]
[BlackElo "2065"]
[Annotator "NA RC"]
[PlyCount "62"]
[EventDate "2020.02.08"]
[EventType "tourn"]
[EventCountry "DEN"]
[SourceTitle "playchess.com"]
[Source "ChessBase"]
[SourceQuality "1"]
[TimeControl "40/5400+30:1800+30"]

{[%evp 26,62,49,54,39,32767,32767,14,35,13,30,13,8,-1,0,-8,8,0,0,0,0,0,10,10,37,32767,37,21,43,33,42,30,21,22,29,32,25,27,24]} 1. d4 {[%emt 0:00:00]} Nf6 {[%emt 0:00:00]} 2. Nf3 {[%emt 0:00:00]} g6 {[%emt 0:00:00]} 3. Nbd2 {[%emt 0:00:00]} c5 {[%emt 0:00:54]} 4. dxc5 {[%emt 0:00:00]} Qa5 {[%emt 0:00:49]} 5. a3 {[%emt 0:00:01]} Qxc5 {[%emt 0:01:44]} 6. b4 {[%emt 0:00:08] A48: 1 d4 Nf6 2 Nf3 g6: Torre, London and Colle Systems.} Qc7 {[%emt 0:00:29]} 7. Bb2 {[%emt 0:00:13]} Bg7 {[%emt 0:00:14]} 8. c4 {[%emt 0:00:20]} O-O {[%emt 0:05:32]} 9. g3 {[%emt 0:01:57]} a5 {[%emt 0:06:33]} 10. Bg2 {[%emt 0:04:41]} d6 {[%emt 0:12:57]} 11. O-O {[%emt 0:10:58]} axb4 {[%emt 0:03:56]} 12. axb4 {[%emt 0:02:40]} Rxa1 {[%emt 0:00:10]} 13. Qxa1 {[%emt 0:06:11]} Na6 {[%emt 0:08:13]} 14. Qa3 {[%emt 0:04:39] [#]} Bd7 $146 {[%emt 0:10:04]} ({Predecessor:} 14... Qb6 15. Rb1 Bf5 16. Bd4 Qc7 17. Rc1 Ne4 18. e3 Rc8 19. Nb3 e5 20. Bb2 Qb6 {1-0 (42) Engelmann,J (2195)-Schoene,M (2191) Germany 2010}) 15. Bd4 {[%emt 0:13:15]} Rc8 {[%emt 0:03:55]} 16. Rb1 {[%emt 0:19:57]} Bf5 {[%emt 0:02:39]} 17. Rc1 {[%emt 0:05:56]} e5 {[%emt 0:05:51]} 18. Bb2 {[%emt 0:00:59]} Qb6 {[%emt 0:00:46]} 19. c5 {[%emt 0:09:37]} Qxb4 {[%emt 0:12:48]} 20. cxd6 {[%emt 0:00:42]} Qxa3 {[%emt 0:02:03]} 21. Bxa3 {[%emt 0:00:01]} Rxc1+ {[%emt 0:00:27]} 22. Bxc1 {[%emt 0:00:02]} Ne8 {[%emt 0:01:09]} 23. Nh4 {[%emt 0:01:21]} Nxd6 {[%emt 0:03:32]} 24. Nxf5 {[%emt 0:00:09]} Nxf5 {[%emt 0:02:49]} 25. Bxb7 {[%emt 0:00:23]} Nc5 {[%emt 0:00:08]} 26. Ba8 {[%emt 0:02:22]} Bh6 {[%emt 0:02:07]} 27. Kf1 {[%emt 0:02:46]} Bf8 {[%emt 0:00:33]} 28. Ne4 {[%emt 0:01:14]} Nxe4 {[%emt 0:00:23]} 29. Bxe4 {[%emt 0:00:07]} Nd6 {[%emt 0:00:05]} 30. Bd5 {[%emt 0:00:18]} Kg7 {[%emt 0:00:51]} 31. Bb2 $11 {[%emt 0:01:09]} f6 {[%emt 0:00:07]} 1/2-1/2

[Event "110th Anniversary WIM 2020"]
[Site "Hilleroed"]
[Date "2020.02.10"]
[Round "4.4"]
[White "Baliuniene, Margarita"]
[Black "Berke, Ana"]
[Result "1/2-1/2"]
[ECO "A57"]
[WhiteElo "1982"]
[BlackElo "2152"]
[Annotator "ChessBase"]
[PlyCount "80"]
[EventDate "2020.02.08"]
[EventType "tourn"]
[EventCountry "DEN"]
[SourceTitle "playchess.com"]
[Source "ChessBase"]
[SourceQuality "1"]
[TimeControl "40/5400+30:1800+30"]

1. d4 {[%emt 0:00:00]} Nf6 {[%emt 0:00:00]} 2. Nf3 {[%emt 0:00:00]} e6 {[%emt 0:00:00]} 3. c4 {[%emt 0:00:00]} c5 {[%emt 0:00:02]} 4. d5 {[%emt 0:00:11]} b5 {[%emt 0:00:06]} 5. e3 {[%emt 0:02:14]} Bb7 {[%emt 0:03:02]} 6. cxb5 {[%emt 0:04:02]} Nxd5 {[%emt 0:01:17]} 7. Nc3 {[%emt 0:01:16]} Be7 {[%emt 0:03:35]} 8. Nxd5 {[%emt 0:02:10]} Bxd5 {[%emt 0:00:25]} 9. Bd2 {[%emt 0:00:32]} a6 {[%emt 0:07:48]} 10. Bc3 {[%emt 0:04:09]} Bf6 {[%emt 0:01:45]} 11. Qc2 {[%emt 0:01:44]} O-O {[%emt 0:06:14]} 12. e4 {[%emt 0:02:56]} Bxc3+ {[%emt 0:02:39]} 13. bxc3 {[%emt 0:00:05]} Bb7 {[%emt 0:01:05]} 14. Be2 {[%emt 0:01:06]} axb5 {[%emt 0:01:36]} 15. Bxb5 {[%emt 0:02:04]} Qa5 {[%emt 0:02:04]} 16. Bd3 {[%emt 0:02:39]} c4 {[%emt 0:02:41]} 17. Bxc4 {[%emt 0:16:18]} Rc8 {[%emt 0:01:13]} 18. Nd2 {[%emt 0:02:37]} d5 {[%emt 0:03:36]} 19. exd5 {[%emt 0:00:51]} exd5 {[%emt 0:01:14]} 20. Bd3 {[%emt 0:00:58]} Re8+ {[%emt 0:02:01]} 21. Kf1 {[%emt 0:02:46]} g6 {[%emt 0:03:07]} 22. Nb3 {[%emt 0:05:35]} Qc7 {[%emt 0:01:50]} 23. h4 {[%emt 0:02:13]} Nd7 {[%emt 0:05:25]} 24. Kg1 {[%emt 0:13:07]} Ne5 {[%emt 0:04:34]} 25. h5 {[%emt 0:01:52]} Nxd3 {[%emt 0:03:21]} 26. Qxd3 {[%emt 0:00:20]} Rxa2 {[%emt 0:01:41]} 27. Rd1 {[%emt 0:07:14]} d4 {[%emt 0:17:52]} 28. Qxd4 {[%emt 0:10:28]} Rae2 {[%emt 0:03:26]} 29. Rf1 {[%emt 0:04:43]} Qc6 {[%emt 0:06:59]} 30. Rh2 {[%emt 0:01:07]} Re1 {[%emt 0:03:08]} 31. Nd2 {[%emt 0:01:00]} Ba6 {[%emt 0:01:19]} 32. c4 {[%emt 0:01:31]} Rxf1+ {[%emt 0:02:11]} 33. Nxf1 {[%emt 0:02:52]} Bxc4 {[%emt 0:00:41]} 34. Ne3 {[%emt 0:00:54]} Ba6 {[%emt 0:02:45]} 35. Rh3 {[%emt 0:01:09]} Qe4 {[%emt 0:03:45]} 36. Qxe4 {[%emt 0:03:00]} Rxe4 {[%emt 0:00:05]} 37. hxg6 {[%emt 0:00:10]} fxg6 {[%emt 0:01:53]} 38. Rg3 {[%emt 0:00:23]} Ra4 {[%emt 0:00:44]} 39. Rg5 {[%emt 0:00:38]} Kg7 {[%emt 0:00:20]} 40. Rc5 {[%emt 0:00:16]} h5 {[%emt 0:01:09]} 1/2-1/2

[Event "110th Anniversary WIM 2020"]
[Site "Hilleroed"]
[Date "2020.02.11"]
[Round "5.1"]
[White "Nilssen, Ellen Fredericia"]
[Black "Zaritovskaja, Margarita"]
[Result "0-1"]
[ECO "A43"]
[WhiteElo "2065"]
[BlackElo "2022"]
[Annotator "NA RC"]
[PlyCount "138"]
[EventDate "2020.02.08"]
[EventType "tourn"]
[EventCountry "DEN"]
[SourceTitle "playchess.com"]
[Source "ChessBase"]
[SourceQuality "1"]
[TimeControl "40/5400+30:1800+30"]

{[%evp 8,138,58,47,43,53,77,62,62,58,72,59,68,67,67,33,39,15,47,34,62,57,69,48,79,44,75,48,55,51,64,25,105,76,80,90,100,56,131,94,114,-42,110,88,174,164,200,283,32767,32767,32767,32767,32767,32767,32767,32767,32767,32767,32767,54,46,50,56,36,69,68,77,66,147,33,44,65,60,41,54,20,36,44,56,-243,-272,-260,-268,-270,-275,-233,-274,-244,-270,-269,-246,-295,-276,-381,-175,-173,-174,-173,-172,-185,-272,-173,-208,-428,-1016,-1201,-1229,-1169,-1583,-885,-6680,-950,-5551,-1657,-29960,-5531,-6536,-1676,-6443,-29965,-11689,-29978,-29979,-29975,-29981,-29980,-29982,-29982,-29983,-29982,-29984,-29984,-29984]} 1. d4 {[%emt 0:00:00]} Nf6 {[%emt 0:00:00]} 2. Nf3 {[%emt 0:00:08]} c5 {[%emt 0:00:06]} 3. d5 {[%emt 0:01:06]} g6 {[%emt 0:01:15]} 4. Nc3 {[%emt 0:00:49]} d6 {[%emt 0:01:09]} 5. e4 {[%emt 0:00:10]} Bg7 {[%emt 0:00:36]} 6. Bb5+ {[%emt 0:00:12]} Nbd7 {[%emt 0:02:08]} 7. a4 {[%emt 0:00:14]} O-O {[%emt 0:01:37]} 8. O-O {[%emt 0:00:13]} a6 {[%emt 0:02:19]} 9. Be2 {[%emt 0:00:53]} Rb8 {[%emt 0:02:30]} 10. Re1 {[%emt 0:05:37]} Ne8 {[%emt 0:04:15] [#] A43: Schmid Benoni.} 11. Bd2 $146 {[%emt 0:05:36]} ({Predecessor:} 11. Bf4 b6 12. Qd2 Nc7 13. Bh6 Bxh6 14. Qxh6 f6 15. Nd2 Ne5 16. f4 Nf7 17. Qh4 b5 18. axb5 axb5 {0-1 (37) Iturrizaga Bonelli,E (2639)-Granda Zuniga,J (2647) Mar del Plata 2012}) 11... Nc7 {[%emt 0:05:12]} 12. Qc1 {[%emt 0:06:13]} Re8 {[%emt 0:14:21]} 13. Bh6 {[%emt 0:13:42]} Bh8 {[%emt 0:00:45]} 14. a5 {[%emt 0:08:51]} b5 {[%emt 0:10:47]} 15. axb6 $1 {[%emt 0:12:40]} Rxb6 {[%emt 0:02:00]} 16. Nd2 {[%emt 0:00:32]} Ne5 {[%emt 0:03:53]} 17. Bf4 {[%emt 0:02:20]} Rb8 {[%emt 0:09:46]} 18. Nb3 {[%emt 0:08:35]} Nb5 {[%emt 0:06:20]} 19. Nd1 {[%emt 0:02:02]} Qb6 {[%emt 0:10:27]} (19... Nd4 $11) 20. Bxe5 {[%emt 0:06:20]} Bxe5 {[%emt 0:00:48]} 21. Na5 {[%emt 0:00:18]} Nd4 {[%emt 0:06:12]} 22. Bf1 {[%emt 0:05:42]} Qa7 {[%emt 0:05:47]} (22... e6 $14) 23. Ra3 {[%emt 0:04:14]} Bd7 {[%emt 0:01:58]} 24. Ne3 $2 {[%emt 0:04:20]} ({White should play} 24. Qd2 $16) 24... Bg7 $2 {[%emt 0:04:17]} (24... Ne2+ $15 {keeps the upper hand.} 25. Bxe2 Bxb2 {[%mdl 64] Double Attack}) 25. Qa1 {[%emt 0:03:48]} Rxb2 {[%emt 0:02:24]} (25... Bh6 $16) 26. c3 {[%emt 0:00:46]} ({Stronger than} 26. Qxb2 Nf3+ 27. gxf3 Bxb2 $17) 26... Nc2 {[%emt 0:00:52]} 27. Qxb2 {[%emt 0:00:12]} Nxe1 {[%emt 0:00:03]} 28. Qd2 {[%emt 0:00:24]} Nxg2 {[%emt 0:00:30]} 29. Nxg2 {[%emt 0:00:20]} Qc7 {[%emt 0:00:37]} 30. Ne3 {[%emt 0:03:17]} Rb8 {[%emt 0:00:50]} 31. Rb3 {[%emt 0:00:27]} Rxb3 {[%emt 0:00:20]} 32. Nxb3 {[%emt 0:00:02]} Qb6 {[%emt 0:00:13]} 33. Nc1 {[%emt 0:02:08]} Qb1 {[%emt 0:00:41]} 34. Bxa6 {[%emt 0:00:36]} Qxe4 {[%emt 0:00:19]} 35. Bf1 {[%emt 0:01:27]} f5 {[%emt 0:00:46]} 36. Ng2 {[%emt 0:01:17]} Be5 {[%emt 0:01:06]} 37. c4 {[%emt 0:00:46]} f4 {[%emt 0:00:34] [#]} ({Black should try} 37... Qb1 $14) 38. Bd3 {[%emt 0:00:57]} (38. Qd3 $1 $16 {[%cal Rd3e4]} Qf5 39. Qxf5 Bxf5 40. Nd3) 38... Qf3 {[%emt 0:00:11]} 39. Be2 {[%emt 0:00:18]} Qh3 $1 {[%emt 0:00:22]} 40. f3 {[%emt 0:01:36]} g5 {[%emt 0:00:55]} 41. Nd3 {[%emt 0:07:12]} Bd4+ {[%emt 0:00:55]} 42. Kh1 {[%emt 0:00:06]} Bf5 {[%emt 0:12:16]} 43. Nde1 $2 {[%emt 0:01:20] [#]} (43. Qd1 $14) 43... Bf2 $1 {[%emt 0:03:51]} 44. Bd3 {[%emt 0:11:42]} Bg3 $1 {[%emt 0:02:42]} 45. Nxf4 {[%emt 0:00:34]} Bxf4 {[%emt 0:01:42]} ({Weaker is} 45... gxf4 46. Qg2 $15) 46. Qg2 {[%emt 0:00:28] [#]} Qh4 $1 {[%emt 0:09:10]} 47. Bxf5 {[%emt 0:00:13]} Qxe1+ {[%emt 0:00:04]} 48. Qg1 {[%emt 0:00:07]} Qe2 {[%emt 0:00:30]} 49. Bg4 {[%emt 0:05:29]} Qxc4 {[%emt 0:00:36]} 50. Qe1 {[%emt 0:01:22]} (50. Be6+ $142 Kg7 51. Kg2) 50... Qc1 {[%emt 0:01:19]} (50... Qc2 $142 {[%csl Gf4][%cal Rc2h2]} 51. Kg1 Qxh2+ 52. Kf1 Be5) 51. Qxc1 {[%emt 0:00:47]} Bxc1 {[%emt 0:00:04]} 52. Kg2 {[%emt 0:01:10]} Kg7 {[%emt 0:00:23]} 53. Bf5 {[%emt 0:00:49]} h5 {[%emt 0:00:48]} 54. Kf2 {[%emt 0:00:59]} Kf6 {[%emt 0:00:34]} 55. Be4 $2 {[%emt 0:00:24]} (55. Be6 {was worth a try.}) 55... e6 {[%emt 0:01:08]} 56. Ke2 {[%emt 0:01:37]} exd5 {[%emt 0:00:21]} 57. Bxd5 {[%emt 0:00:09]} Ke5 {[%emt 0:00:12]} 58. Bf7 {[%emt 0:00:31]} h4 {[%emt 0:00:19]} 59. Kd3 {[%emt 0:00:33]} d5 {[%emt 0:00:18]} 60. h3 {[%emt 0:00:27]} c4+ {[%emt 0:01:31]} 61. Kc3 {[%emt 0:00:10]} Ba3 {[%emt 0:01:00]} 62. Bg8 {[%emt 0:01:25]} Kd6 {[%emt 0:00:26]} 63. Bf7 {[%emt 0:01:10]} Kc5 {[%emt 0:00:08]} 64. Bg8 {[%emt 0:00:23]} Bb4+ {[%emt 0:00:35]} 65. Kc2 {[%emt 0:00:07]} d4 {[%emt 0:00:36]} 66. Bh7 {[%emt 0:00:09]} d3+ {[%emt 0:00:18]} 67. Bxd3 {[%emt 0:00:45]} cxd3+ {[%emt 0:00:03]} 68. Kxd3 {[%emt 0:00:10]} Kd5 {[%emt 0:00:12]} 69. Ke3 {[%emt 0:00:04]} Bc5+ {[%emt 0:03:18] Kd4+ Ke5+} 0-1